[Event "2nd Hersonissos Open 2018"]
[Site "Hersonissos"]
[Date "2018.06.19"]
[Round "4"]
[White "Papidakis, Georgios"]
[Black "Kadianis, Georgios"]
[Result "0-1"]
[ECO "D10"]
[WhiteElo "1710"]
[BlackElo "1917"]
[Annotator "NA"]
[PlyCount "166"]
[EventDate "2018.06.16"]
[EventType "swiss"]
[EventCountry "GRE"]
[SourceTitle "playchess.com"]
[Source "ChessBase"]
[SourceQuality "1"]
[TimeControl "5400+30"]

1. d4 {[%emt 0:00:00]} d5 {[%emt 0:00:13]} 2. c4 {[%emt 0:00:00]} c6 {[%emt 0:00:07]} 3. cxd5 {[%emt 0:00:00]} cxd5 {[%emt 0:00:03]} 4. Bf4 {[%emt 0:00:00]} Nc6 {[%emt 0:00:08]} 5. e3 {[%emt 0:00:00]} Nf6 {[%emt 0:00:05]} 6. Nc3 {[%emt 0:00:00]} a6 {[%emt 0:00:05]} 7. Bd3 {[%emt 0:00:04]} e6 {[%emt 0:00:11]} 8. h3 {[%emt 0:00:13]} Be7 {[%emt 0:00:07]} 9. Nf3 {[%emt 0:00:14]} O-O {[%emt 0:00:08]} 10. O-O {[%emt 0:00:17]} Bd7 {[%emt 0:00:47]} 11. Rc1 {[%emt 0:01:05]} b5 {[%emt 0:01:30]} 12. Ne5 {[%emt 0:00:24]} Rc8 {[%emt 0:02:28]} 13. Nxd7 {[%emt 0:00:12]} Nxd7 {[%emt 0:04:00]} 14. a4 {[%emt 0:00:40]} b4 {[%emt 0:08:07]} 15. Nb1 {[%emt 0:30:05]} Qb6 16. Qe2 {[%emt 0:06:54]} Ndb8 {[%emt 0:27:28]} 17. Nd2 {[%emt 0:02:43]} b3 {[%emt 0:07:57]} 18. Bxb8 {[%emt 0:26:43]} Nxb8 {[%emt 0:00:53]} 19. Rxc8 {[%emt 0:00:47]} Rxc8 {[%emt 0:00:06]} 20. Qd1 {[%emt 0:00:13]} Qa5 {[%emt 0:06:54]} 21. Nxb3 {[%emt 0:05:00]} Qxa4 {[%emt 0:00:53]} 22. Nc5 {[%emt 0:02:42]} Qa5 {[%emt 0:06:22]} 23. Qb1 {[%emt 0:03:14]} Bxc5 {[%emt 0:01:14]} 24. Bxh7+ {[%emt 0:14:11]} Kf8 {[%emt 0:00:06]} 25. Rc1 {[%emt 0:01:44]} Qb4 {[%emt 0:07:57]} 26. Bd3 {[%emt 0:01:52]} Rc7 {[%emt 0:02:06]} 27. dxc5 {[%emt 0:00:51]} Rxc5 {[%emt 0:00:09]} 28. Rxc5 {[%emt 0:00:17]} Qxc5 {[%emt 0:00:04]} 29. Bf1 {[%emt 0:00:24]} g6 {[%emt 0:02:28]} 30. Qa2 {[%emt 0:02:42]} a5 {[%emt 0:00:27]} 31. Qb3 {[%emt 0:00:55]} Nd7 {[%emt 0:02:22]} 32. Qa2 {[%emt 0:00:48]} Ne5 {[%emt 0:06:16]} 33. Qa1 {[%emt 0:00:23]} Nc4 {[%emt 0:03:18]} 34. Bxc4 {[%emt 0:00:42]} dxc4 {[%emt 0:00:05]} 35. Qd1 {[%emt 0:00:28]} Qb6 {[%emt 0:00:58]} 36. Qd2 {[%emt 0:00:37]} Ke7 {[%emt 0:04:59]} 37. Qc3 {[%emt 0:00:31]} Qb5 {[%emt 0:04:09]} 38. Qd4 {[%emt 0:00:19]} a4 {[%emt 0:00:57]} 39. Qa7+ {[%emt 0:00:37]} Kf8 {[%emt 0:01:02]} 40. Qd4 {[%emt 0:00:00]} e5 {[%emt 0:00:00]} 41. Qc3 {[%emt 0:00:00]} Kg8 {[%emt 0:00:00]} 42. h4 {[%emt 0:00:00]} Qb3 {[%emt 0:00:00]} 43. Qxe5 {[%emt 0:00:00]} c3 {[%emt 0:00:00]} 44. bxc3 {[%emt 0:00:00]} a3 {[%emt 0:00:00]} 45. Kh2 {[%emt 0:00:00]} a2 {[%emt 0:00:00]} 46. Qa5 {[%emt 0:00:39]} Qb8+ {[%emt 0:00:02]} 47. f4 {[%emt 0:00:37]} Qb1 {[%emt 0:05:01]} 48. Qd8+ {[%emt 0:00:26]} Kh7 {[%emt 0:00:36]} 49. Qf6 {[%emt 0:02:52]} Qf5 {[%emt 0:00:37]} 50. Qa6 {[%emt 0:00:30]} Qd5 {[%emt 0:01:17]} 51. Qa3 {[%emt 0:00:56]} Kg7 {[%emt 0:00:39]} 52. Qa7 {[%emt 0:00:30]} Qd2 {[%emt 0:00:32]} 53. Qa4 {[%emt 0:00:29]} Kh7 {[%emt 0:00:33]} 54. Qa7 {[%emt 0:00:23]} Kg8 {[%emt 0:00:16]} 55. Qa8+ {[%emt 0:00:34]} Kg7 {[%emt 0:00:06]} 56. Qa4 {[%emt 0:00:15]} Kf8 {[%emt 0:00:49]} 57. Qa8+ {[%emt 0:00:44]} Ke7 {[%emt 0:00:04]} 58. Qe4+ {[%emt 0:00:15]} Kd7 {[%emt 0:00:18]} 59. Qb7+ {[%emt 0:00:17]} Ke6 {[%emt 0:00:12]} 60. Qc6+ {[%emt 0:00:54]} Kf5 {[%emt 0:00:59]} 61. Qc5+ {[%emt 0:00:39]} Ke4 {[%emt 0:00:27]} 62. Qe5+ {[%emt 0:00:29]} Kd3 {[%emt 0:00:05]} 63. Qb5+ {[%emt 0:00:36]} Kc2 {[%emt 0:00:44]} 64. Qa4+ {[%emt 0:00:14]} Kc1 {[%emt 0:00:41]} 65. Qa6 {[%emt 0:00:30]} Kb2 {[%emt 0:01:01]} 66. Qb5+ {[%emt 0:00:20]} Kxc3 {[%emt 0:00:39]} 67. Qa5+ {[%emt 0:00:57]} Kd3 {[%emt 0:00:23]} 68. Qd5+ {[%emt 0:00:22]} Ke2 {[%emt 0:00:41]} 69. Qc4+ {[%emt 0:00:36]} Ke1 {[%emt 0:00:26]} 70. Qa4 {[%emt 0:00:26]} Qb2 {[%emt 0:00:38]} 71. Qa5+ {[%emt 0:00:30]} Kf1 {[%emt 0:00:12]} 72. Qa6+ {[%emt 0:00:36]} Qe2 {[%emt 0:00:15]} 73. Qa8 {[%emt 0:00:21]} Kf2 {[%emt 0:01:03]} 74. e4 {[%emt 0:00:19]} Ke3 {[%emt 0:00:30]} 75. f5 {[%emt 0:00:48]} Qb2 {[%emt 0:00:32]} 76. Qa7+ {[%emt 0:00:20]} Kxe4 {[%emt 0:00:27]} 77. Qa8+ {[%emt 0:00:34]} Kxf5 {[%emt 0:00:11]} 78. Qf3+ {[%emt 0:00:31]} Ke6 {[%emt 0:00:11]} 79. Qc6+ {[%emt 0:00:23]} Ke7 {[%emt 0:00:15]} 80. Qc5+ {[%emt 0:00:08]} Kf6 {[%emt 0:00:19]} 81. Qf8 {[%emt 0:01:06]} Qe5+ {[%emt 0:00:53]} 82. Kh3 {[%emt 0:00:30]} a1=Q {[%emt 0:00:48]} 83. Qd8+ {[%emt 0:00:22]} Kg7 {[%emt 0:00:17]} 0-1

[Event "2nd Hersonissos Open 2018"]
[Site "Hersonissos"]
[Date "2018.06.19"]
[Round "4"]
[White "Magoulianos, Nikolaos"]
[Black "Sielicki, Tomasz"]
[Result "0-1"]
[ECO "A41"]
[WhiteElo "1434"]
[BlackElo "1963"]
[Annotator "NA"]
[PlyCount "104"]
[EventDate "2018.06.16"]
[EventType "swiss"]
[EventCountry "GRE"]
[SourceTitle "playchess.com"]
[Source "ChessBase"]
[SourceQuality "1"]
[TimeControl "5400+30"]

1. d4 {[%emt 0:01:29]} d6 {[%emt 0:00:16]} 2. c4 {[%emt 0:00:05]} e5 {[%emt 0:00:07]} 3. dxe5 {[%emt 0:01:00]} dxe5 {[%emt 0:00:07]} 4. Qxd8+ {[%emt 0:02:39]} Kxd8 {[%emt 0:00:17]} 5. Nc3 {[%emt 0:01:14]} Be6 {[%emt 0:00:34]} 6. Nf3 {[%emt 0:03:01]} f6 {[%emt 0:00:25]} 7. e4 {[%emt 0:01:04]} c6 {[%emt 0:00:19]} 8. Be2 {[%emt 0:02:20]} Nd7 {[%emt 0:00:26]} 9. O-O {[%emt 0:01:26]} Kc7 {[%emt 0:01:19]} 10. Be3 {[%emt 0:01:11]} a5 {[%emt 0:01:00]} 11. Na4 {[%emt 0:03:41]} Ne7 {[%emt 0:02:09]} 12. Rfd1 {[%emt 0:01:53]} b6 {[%emt 0:09:49]} 13. Rd2 {[%emt 0:05:37]} Nc8 {[%emt 0:01:10]} 14. a3 {[%emt 0:03:09]} Nd6 $11 {[%emt 0:02:55]} 15. Rad1 {[%emt 0:01:49]} Rb8 {[%emt 0:07:09]} 16. Nc3 {[%emt 0:09:57]} Nb7 {[%emt 0:04:31]} 17. Ne1 {[%emt 0:08:57]} Be7 {[%emt 0:03:45]} 18. f4 {[%emt 0:03:26]} Rhd8 {[%emt 0:01:45]} 19. Nf3 {[%emt 0:08:03]} Nd6 {[%emt 0:03:53]} 20. fxe5 {[%emt 0:03:35]} fxe5 {[%emt 0:03:38]} 21. Bg5 {[%emt 0:01:15]} Nf6 {[%emt 0:17:40]} 22. Nxe5 {[%emt 0:01:47]} Ndxe4 {[%emt 0:04:29]} 23. Nxe4 {[%emt 0:01:31]} Nxe4 {[%emt 0:00:27]} 24. Rxd8 {[%emt 0:00:28]} Bxd8 {[%emt 0:01:46]} 25. Bxd8+ {[%emt 0:00:35]} Rxd8 {[%emt 0:00:04]} 26. Rxd8 {[%emt 0:00:06]} Kxd8 {[%emt 0:00:08]} 27. Nxc6+ {[%emt 0:00:11]} Kd7 {[%emt 0:03:33]} 28. Nd4 {[%emt 0:01:47]} h6 {[%emt 0:06:31]} 29. Nxe6 {[%emt 0:01:22]} Kxe6 {[%emt 0:00:00]} 30. Bd3 {[%emt 0:00:58]} Nc5 {[%emt 0:00:18]} 31. Bc2 {[%emt 0:01:32]} Ke5 {[%emt 0:00:24]} 32. Kf2 {[%emt 0:08:50]} Kd4 {[%emt 0:00:45]} 33. Kg3 {[%emt 0:00:37]} Kxc4 {[%emt 0:01:27]} 34. Kh4 {[%emt 0:00:08]} Nd3 {[%emt 0:08:32]} 35. Bxd3+ {[%emt 0:00:30]} Kxd3 {[%emt 0:00:15]} 36. Kh5 {[%emt 0:00:05]} Kc2 {[%emt 0:00:04]} 37. Kg6 {[%emt 0:00:20]} Kxb2 {[%emt 0:00:09]} 38. Kxg7 {[%emt 0:00:04]} Kxa3 {[%emt 0:00:08]} 39. Kxh6 {[%emt 0:00:04]} b5 {[%emt 0:00:27]} 40. g4 {[%emt 0:00:00]} b4 {[%emt 0:00:00]} 41. g5 {[%emt 0:00:00]} b3 {[%emt 0:00:00]} 42. g6 {[%emt 0:00:00]} b2 {[%emt 0:00:00]} 43. g7 {[%emt 0:00:00]} b1=Q {[%emt 0:00:00]} 44. g8=Q {[%emt 0:00:00]} Qc1+ {[%emt 0:00:00]} 45. Qg5 {[%emt 0:00:00]} Qxg5+ {[%emt 0:00:00]} 46. Kxg5 {[%emt 0:00:00]} Kb4 {[%emt 0:00:00]} 47. h4 {[%emt 0:00:00]} a4 {[%emt 0:00:00]} 48. h5 {[%emt 0:00:00]} a3 {[%emt 0:00:00]} 49. h6 {[%emt 0:00:00]} a2 {[%emt 0:00:00]} 50. h7 {[%emt 0:00:00]} a1=Q {[%emt 0:00:00]} 51. Kh6 {[%emt 0:00:00]} Qf6+ {[%emt 0:00:00]} 52. Kh5 {[%emt 0:00:00]} Qg7 {[%emt 0:00:00]} 0-1

[Event "2nd Hersonissos Open 2018"]
[Site "Hersonissos"]
[Date "2018.06.19"]
[Round "4"]
[White "Vlatas, Dimitrios"]
[Black "Pliev, Vladimir"]
[Result "0-1"]
[ECO "A00"]
[WhiteElo "1146"]
[BlackElo "1909"]
[Annotator "NA"]
[PlyCount "44"]
[EventDate "2018.06.16"]
[EventType "swiss"]
[EventCountry "GRE"]
[SourceTitle "playchess.com"]
[Source "ChessBase"]
[SourceQuality "1"]
[TimeControl "5400+30"]

1. g3 {[%emt 0:00:00]} d5 {[%emt 0:00:11]} 2. Bg2 {[%emt 0:00:00]} c5 {[%emt 0:00:06]} 3. d3 {[%emt 0:00:00]} Nc6 {[%emt 0:00:06]} 4. Nd2 {[%emt 0:00:00]} Nf6 {[%emt 0:01:42]} 5. Ngf3 {[%emt 0:03:22]} g6 {[%emt 0:00:19]} 6. b3 {[%emt 0:00:24]} Bg7 {[%emt 0:00:11]} 7. Bb2 {[%emt 0:00:08]} O-O {[%emt 0:00:07]} 8. O-O {[%emt 0:00:04]} Qc7 {[%emt 0:01:32]} 9. e4 {[%emt 0:02:09]} dxe4 {[%emt 0:01:28]} 10. Nxe4 {[%emt 0:00:12]} Nxe4 {[%emt 0:00:15]} 11. Bxg7 {[%emt 0:00:18]} Nxf2 {[%emt 0:01:21]} 12. Rxf2 {[%emt 0:00:08]} Kxg7 {[%emt 0:00:08]} 13. Qd2 {[%emt 0:04:25]} f6 {[%emt 0:03:08]} 14. Raf1 {[%emt 0:00:57]} Bg4 {[%emt 0:03:22]} 15. Nh4 {[%emt 0:13:22]} Nd4 {[%emt 0:02:22]} 16. Kh1 {[%emt 0:06:53]} Rac8 {[%emt 0:04:23]} 17. Rf4 {[%emt 0:10:09]} Qd7 {[%emt 0:02:16]} 18. R4f2 {[%emt 0:10:49]} e5 {[%emt 0:06:59]} 19. c3 {[%emt 0:05:11]} Nc6 {[%emt 0:05:19]} 20. h3 {[%emt 0:08:33]} Bxh3 {[%emt 0:02:21]} 21. Bxh3 {[%emt 0:00:10]} Qxh3+ {[%emt 0:00:08]} 22. Rh2 {[%emt 0:00:04]} Qxf1# {[%emt 0:00:07]} 0-1

[Event "2nd Hersonissos Open 2018"]
[Site "Hersonissos"]
[Date "2018.06.20"]
[Round "5"]
[White "Risting, Eivind Olav"]
[Black "Haug, Johannes"]
[Result "1/2-1/2"]
[ECO "D38"]
[WhiteElo "2301"]
[BlackElo "2401"]
[Annotator "NA"]
[PlyCount "30"]
[EventDate "2018.06.16"]
[EventType "swiss"]
[EventCountry "GRE"]
[SourceTitle "playchess.com"]
[Source "ChessBase"]
[SourceQuality "1"]
[TimeControl "5400+30"]

1. c4 {[%emt 0:00:00]} e6 {[%emt 0:07:18]} 2. Nc3 {[%emt 0:00:36]} d5 {[%emt 0:00:36]} 3. d4 {[%emt 0:01:56]} Bb4 {[%emt 0:00:40]} 4. Nf3 {[%emt 0:02:12]} Nf6 {[%emt 0:01:43]} 5. cxd5 {[%emt 0:01:02]} exd5 {[%emt 0:00:20]} 6. Bg5 {[%emt 0:11:07]} h6 {[%emt 0:01:48]} 7. Bh4 {[%emt 0:04:00]} c5 {[%emt 0:14:17]} 8. dxc5 {[%emt 0:03:15]} Nc6 {[%emt 0:03:19]} 9. e3 {[%emt 0:05:21]} g5 {[%emt 0:10:10]} 10. Bg3 {[%emt 0:00:09]} Ne4 {[%emt 0:00:42]} 11. Nd2 {[%emt 0:10:58]} Nxc3 {[%emt 0:11:49]} 12. bxc3 {[%emt 0:00:06]} Bxc3 {[%emt 0:00:06]} 13. Rc1 {[%emt 0:10:21]} Qa5 {[%emt 0:00:23]} 14. Bd3 {[%emt 0:15:24]} Be6 {[%emt 0:10:07]} 15. Rc2 {[%emt 0:10:59]} Bg7 {[%emt 0:21:40]} 1/2-1/2

[Event "2nd Hersonissos Open 2018"]
[Site "Hersonissos"]
[Date "2018.06.20"]
[Round "5"]
[White "Djingarova, Emilia"]
[Black "Hommeles, Theo"]
[Result "0-1"]
[ECO "B06"]
[WhiteElo "2218"]
[BlackElo "2361"]
[Annotator "NA"]
[PlyCount "144"]
[EventDate "2018.06.16"]
[EventType "swiss"]
[EventCountry "GRE"]
[SourceTitle "playchess.com"]
[Source "ChessBase"]
[SourceQuality "1"]
[TimeControl "5400+30"]

1. d4 {[%emt 0:09:04]} g6 {[%emt 0:00:42]} 2. e4 {[%emt 0:00:17]} Bg7 {[%emt 0:00:15]} 3. Nf3 {[%emt 0:00:09]} d6 {[%emt 0:00:22]} 4. Bd3 {[%emt 0:00:16]} Nc6 {[%emt 0:04:54]} 5. c3 {[%emt 0:00:59]} e5 {[%emt 0:00:14]} 6. dxe5 {[%emt 0:06:42]} dxe5 {[%emt 0:25:05]} 7. O-O {[%emt 0:00:26]} h6 {[%emt 0:02:19]} 8. Na3 {[%emt 0:07:54]} Nf6 {[%emt 0:07:55]} 9. Nc4 {[%emt 0:04:25]} Nh5 {[%emt 0:04:59]} 10. a4 {[%emt 0:10:30]} Be6 {[%emt 0:05:12]} 11. b4 {[%emt 0:08:17]} Nf4 {[%emt 0:06:23]} 12. Bxf4 {[%emt 0:00:56]} exf4 {[%emt 0:00:01]} 13. Qc2 {[%emt 0:04:13]} O-O {[%emt 0:03:42]} 14. b5 {[%emt 0:03:43]} Ne7 {[%emt 0:10:03]} 15. Rfd1 {[%emt 0:04:03]} c5 {[%emt 0:00:28]} 16. a5 {[%emt 0:01:58]} Qc7 {[%emt 0:01:13]} 17. Be2 {[%emt 0:15:07]} Rad8 {[%emt 0:02:26]} 18. a6 {[%emt 0:02:51]} b6 {[%emt 0:00:13]} 19. h3 {[%emt 0:02:25]} g5 {[%emt 0:00:50]} 20. Rd2 {[%emt 0:03:28]} Rxd2 {[%emt 0:00:07]} 21. Nfxd2 {[%emt 0:00:14]} Rd8 {[%emt 0:04:33]} 22. Nf3 {[%emt 0:02:04]} Ng6 {[%emt 0:00:25]} 23. Re1 {[%emt 0:02:33]} Ne5 {[%emt 0:01:39]} 24. Ncxe5 {[%emt 0:01:40]} Bxe5 {[%emt 0:00:02]} 25. c4 {[%emt 0:00:48]} Kf8 {[%emt 0:06:43]} 26. Rd1 {[%emt 0:00:35]} Rxd1+ {[%emt 0:00:13]} 27. Qxd1 {[%emt 0:00:18]} Ke7 {[%emt 0:00:09]} 28. Qd3 {[%emt 0:01:26]} Qd6 {[%emt 0:00:42]} 29. Kf1 {[%emt 0:02:22]} Qxd3 {[%emt 0:06:52]} 30. Bxd3 {[%emt 0:00:02]} Kd6 {[%emt 0:00:16]} 31. Ke2 {[%emt 0:00:09]} Bf6 {[%emt 0:01:36]} 32. Nd2 {[%emt 0:01:45]} Ke5 {[%emt 0:00:22]} 33. Nf3+ {[%emt 0:00:08]} Kd6 {[%emt 0:00:03]} 34. Nd2 {[%emt 0:00:04]} Be7 {[%emt 0:00:36]} 35. Nf3 {[%emt 0:01:46]} Bf8 {[%emt 0:03:12]} 36. Nd2 {[%emt 0:00:07]} Ke5 {[%emt 0:00:12]} 37. Nf3+ {[%emt 0:00:07]} Kd6 {[%emt 0:00:04]} 38. Nd2 {[%emt 0:00:05]} Bg7 {[%emt 0:00:08]} 39. Nb3 {[%emt 0:02:40]} Bc3 {[%emt 0:01:26]} 40. f3 {[%emt 0:00:00]} h5 {[%emt 0:00:00]} 41. Kf2 {[%emt 0:00:00]} Be5 {[%emt 0:00:00]} 42. Ke2 {[%emt 0:00:00]} Ke7 {[%emt 0:00:00]} 43. Kf2 {[%emt 0:00:00]} Kf6 {[%emt 0:00:00]} 44. Ke2 {[%emt 0:00:00]} Kg7 {[%emt 0:00:00]} 45. Kf2 {[%emt 0:00:00]} Kf8 {[%emt 0:00:00]} 46. Ke2 {[%emt 0:00:00]} Kg8 {[%emt 0:00:00]} 47. Kf2 {[%emt 0:00:00]} Kh8 {[%emt 0:00:00]} 48. Ke2 {[%emt 0:00:00]} Kg7 {[%emt 0:00:00]} 49. Kf2 {[%emt 0:00:00]} Kg6 {[%emt 0:00:00]} 50. Ke2 {[%emt 0:00:00]} g4 {[%emt 0:00:00]} 51. hxg4 {[%emt 0:00:00]} hxg4 {[%emt 0:00:00]} 52. Nd2 {[%emt 0:00:00]} Bc3 {[%emt 0:00:00]} 53. Nf1 {[%emt 0:00:00]} Kg5 {[%emt 0:00:00]} 54. Nh2 {[%emt 0:00:00]} g3 {[%emt 0:00:00]} 55. Ng4 {[%emt 0:00:00]} Bxg4 {[%emt 0:00:00]} 56. fxg4 {[%emt 0:00:00]} Kxg4 {[%emt 0:00:00]} 57. e5 {[%emt 0:00:00]} f3+ {[%emt 0:00:00]} 58. Kf1 {[%emt 0:00:00]} f2 {[%emt 0:00:00]} 59. Be4 {[%emt 0:00:00]} Bxe5 {[%emt 0:00:00]} 60. Ke2 {[%emt 0:00:30]} Kf4 {[%emt 0:01:16]} 61. Bd5 {[%emt 0:00:20]} f6 {[%emt 0:00:09]} 62. Bf3 {[%emt 0:00:12]} Bd6 {[%emt 0:00:08]} 63. Bd5 {[%emt 0:00:23]} Ke5 {[%emt 0:00:02]} 64. Kf1 {[%emt 0:00:25]} Kd4 {[%emt 0:00:07]} 65. Be6 {[%emt 0:01:45]} Kd3 {[%emt 0:00:09]} 66. Bd5 {[%emt 0:03:55]} Be5 {[%emt 0:00:06]} 67. Bf7 {[%emt 0:00:38]} Bd4 {[%emt 0:00:09]} 68. Bd5 {[%emt 0:00:31]} f5 {[%emt 0:00:29]} 69. Be6 {[%emt 0:00:09]} f4 {[%emt 0:00:07]} 70. Bd5 {[%emt 0:00:04]} f3 {[%emt 0:00:16]} 71. Bxf3 {[%emt 0:02:16]} Kxc4 {[%emt 0:00:06]} 72. Bc6 {[%emt 0:01:22]} Kb4 {[%emt 0:00:10]} 0-1

[Event "2nd Hersonissos Open 2018"]
[Site "Hersonissos"]
[Date "2018.06.20"]
[Round "5"]
[White "Loshkarev, Dmitri"]
[Black "Bras, Emanouel"]
[Result "1-0"]
[ECO "B12"]
[WhiteElo "2089"]
[BlackElo "1859"]
[Annotator "NA"]
[PlyCount "60"]
[EventDate "2018.06.16"]
[EventType "swiss"]
[EventCountry "GRE"]
[SourceTitle "playchess.com"]
[Source "ChessBase"]
[SourceQuality "1"]
[TimeControl "5400+30"]

1. e4 {[%emt 0:06:52]} c6 {[%emt 0:07:27]} 2. d4 {[%emt 0:00:05]} d5 {[%emt 0:00:07]} 3. e5 {[%emt 0:00:03]} Bf5 {[%emt 0:00:14]} 4. c4 {[%emt 0:00:04]} e6 {[%emt 0:02:39]} 5. Nc3 {[%emt 0:00:15]} Ne7 {[%emt 0:00:41]} 6. Be3 {[%emt 0:00:08]} Bg6 {[%emt 0:02:01]} 7. c5 {[%emt 0:01:13]} Na6 {[%emt 0:06:11]} 8. a3 {[%emt 0:01:43]} Nc7 {[%emt 0:00:29]} 9. Nf3 {[%emt 0:01:17]} Nf5 {[%emt 0:00:52]} 10. h4 {[%emt 0:05:06]} Nxe3 {[%emt 0:04:22]} 11. fxe3 {[%emt 0:00:10]} Bh5 {[%emt 0:05:32]} 12. Be2 {[%emt 0:03:06]} Be7 {[%emt 0:01:19]} 13. g3 {[%emt 0:04:26]} f6 {[%emt 0:05:32]} 14. exf6 {[%emt 0:08:14]} gxf6 {[%emt 0:02:32]} 15. Nh2 {[%emt 0:03:21]} Bxe2 {[%emt 0:10:37]} 16. Qxe2 {[%emt 0:03:14]} Kd7 {[%emt 0:01:16]} 17. O-O-O {[%emt 0:01:38]} b6 {[%emt 0:03:07]} 18. cxb6 {[%emt 0:03:39]} axb6 {[%emt 0:00:21]} 19. e4 {[%emt 0:00:16]} Ra5 {[%emt 0:07:59]} 20. Rhe1 {[%emt 0:05:54]} b5 {[%emt 0:02:20]} 21. exd5 {[%emt 0:00:49]} cxd5 {[%emt 0:00:52]} 22. Kc2 {[%emt 0:21:03]} b4 {[%emt 0:04:06]} 23. axb4 {[%emt 0:00:06]} Bxb4 {[%emt 0:00:41]} 24. Ra1 {[%emt 0:01:17]} Qa8 {[%emt 0:04:36]} 25. Rxa5 {[%emt 0:01:51]} Qxa5 {[%emt 0:00:43]} 26. Ng4 {[%emt 0:00:45]} Rc8 {[%emt 0:09:08]} 27. Nxf6+ {[%emt 0:04:52]} Kd8 {[%emt 0:06:43]} 28. Qg4 {[%emt 0:06:27]} Nb5 {[%emt 0:07:47]} 29. Rxe6 {[%emt 0:10:50]} Qa4+ {[%emt 0:02:38]} 30. Kd3 {[%emt 0:01:18]} Nxc3 {Ke4} 1-0

[Event "2nd Hersonissos Open 2018"]
[Site "Hersonissos"]
[Date "2018.06.20"]
[Round "5"]
[White "Umbetov, Kazybek"]
[Black "Maris, Ioannis"]
[Result "1-0"]
[ECO "A01"]
[WhiteElo "2001"]
[BlackElo "1915"]
[Annotator "NA"]
[PlyCount "71"]
[EventDate "2018.06.16"]
[EventType "swiss"]
[EventCountry "GRE"]
[SourceTitle "playchess.com"]
[Source "ChessBase"]
[SourceQuality "1"]
[TimeControl "5400+30"]

1. b3 {[%emt 0:00:04]} Nf6 {[%emt 0:00:53]} 2. Bb2 {[%emt 0:00:06]} e6 {[%emt 0:01:21]} 3. e3 {[%emt 0:00:27]} b6 {[%emt 0:00:54]} 4. f4 {[%emt 0:01:43]} Bb7 {[%emt 0:00:38]} 5. Nf3 {[%emt 0:00:12]} g6 {[%emt 0:03:31]} 6. Be2 {[%emt 0:00:45]} Bg7 {[%emt 0:00:14]} 7. O-O {[%emt 0:00:02]} O-O {[%emt 0:00:18]} 8. c4 {[%emt 0:02:00]} c5 {[%emt 0:04:10]} 9. Na3 {[%emt 0:05:57]} Nc6 {[%emt 0:03:22]} 10. Nc2 {[%emt 0:07:03]} Rc8 {[%emt 0:08:18]} 11. Qe1 {[%emt 0:02:49]} d5 {[%emt 0:01:33]} 12. cxd5 {[%emt 0:00:46]} exd5 {[%emt 0:08:08]} 13. d3 {[%emt 0:04:34]} Qe7 {[%emt 0:12:12]} 14. Ne5 {[%emt 0:06:01]} Nd7 {[%emt 0:06:27]} 15. Nxc6 {[%emt 0:02:04]} Bxc6 {[%emt 0:00:06]} 16. Bxg7 {[%emt 0:00:06]} Kxg7 {[%emt 0:00:16]} 17. f5 {[%emt 0:01:29]} f6 {[%emt 0:01:03]} 18. Qh4 {[%emt 0:08:08]} Ne5 {[%emt 0:04:59]} 19. d4 {[%emt 0:01:07]} Nf7 {[%emt 0:00:51]} 20. dxc5 {[%emt 0:13:32]} bxc5 {[%emt 0:01:13]} 21. Rac1 {[%emt 0:08:39]} d4 {[%emt 0:08:36]} 22. fxg6 {[%emt 0:04:42]} hxg6 {[%emt 0:00:06]} 23. Bg4 {[%emt 0:00:50]} d3 {[%emt 0:15:16]} 24. Bxc8 {[%emt 0:01:59]} Rxc8 {[%emt 0:00:11]} 25. Na3 {[%emt 0:00:55]} Ng5 {[%emt 0:03:37]} 26. Nc4 {[%emt 0:01:49]} Ne4 {[%emt 0:01:12]} 27. Rcd1 {[%emt 0:04:58]} Rh8 {[%emt 0:00:21]} 28. Qg4 {[%emt 0:00:31]} Rh5 {[%emt 0:00:41]} 29. Rxd3 {[%emt 0:01:50]} Rg5 {[%emt 0:01:09]} 30. Qc8 {[%emt 0:00:32]} Bd5 {[%emt 0:00:48]} 31. g3 {[%emt 0:07:56]} Be6 {[%emt 0:05:44]} 32. Qd8 {[%emt 0:01:26]} Qf7 {[%emt 0:00:04]} 33. Nd6 {[%emt 0:00:39]} Nxd6 {[%emt 0:00:09]} 34. Rxd6 {[%emt 0:00:36]} Re5 {[%emt 0:00:23]} 35. Rfd1 {[%emt 0:00:25]} Kh6 {[%emt 0:00:46]} 36. Qh8+ {[%emt 0:00:09]} 1-0

[Event "2nd Hersonissos Open 2018"]
[Site "Hersonissos"]
[Date "2018.06.20"]
[Round "5"]
[White "Sielicki, Tomasz"]
[Black "Kozyris, Ilias"]
[Result "1-0"]
[ECO "A45"]
[WhiteElo "1963"]
[BlackElo "1570"]
[Annotator "NA"]
[PlyCount "55"]
[EventDate "2018.06.16"]
[EventType "swiss"]
[EventCountry "GRE"]
[SourceTitle "playchess.com"]
[Source "ChessBase"]
[SourceQuality "1"]
[TimeControl "5400+30"]

1. d4 {[%emt 0:00:00]} Nf6 {[%emt 0:04:36]} 2. Bf4 {[%emt 0:00:00]} e6 {[%emt 0:00:54]} 3. Nf3 {[%emt 0:00:33]} c5 {[%emt 0:00:36]} 4. e3 {[%emt 0:00:15]} d5 {[%emt 0:01:17]} 5. c3 {[%emt 0:00:55]} Nc6 {[%emt 0:00:08]} 6. Nbd2 {[%emt 0:01:16]} Bd6 {[%emt 0:01:33]} 7. Bg3 {[%emt 0:00:32]} O-O {[%emt 0:00:55]} 8. Bd3 {[%emt 0:00:36]} Re8 {[%emt 0:08:07]} 9. Ne5 {[%emt 0:03:04]} Ne7 {[%emt 0:05:02]} 10. f4 {[%emt 0:03:34]} Nf5 {[%emt 0:00:39]} 11. Bf2 {[%emt 0:05:08]} cxd4 {[%emt 0:21:08]} 12. exd4 {[%emt 0:01:42]} Bf8 {[%emt 0:04:59]} 13. g4 {[%emt 0:03:35]} Nd6 {[%emt 0:00:13]} 14. Bh4 {[%emt 0:03:56]} Be7 {[%emt 0:00:25]} 15. Bxf6 {[%emt 0:18:22]} Bxf6 {[%emt 0:00:31]} 16. O-O {[%emt 0:02:14]} a6 {[%emt 0:23:10]} 17. Qf3 {[%emt 0:05:30]} g6 {[%emt 0:05:10]} 18. Rae1 {[%emt 0:06:25]} Bg7 {[%emt 0:03:58]} 19. Qh3 {[%emt 0:02:07]} a5 {[%emt 0:08:05]} 20. Re2 {[%emt 0:04:16]} b6 {[%emt 0:02:15]} 21. Rg2 {[%emt 0:01:42]} Ba6 {[%emt 0:01:31]} 22. Bxa6 {[%emt 0:08:28]} Rxa6 {[%emt 0:00:08]} 23. f5 {[%emt 0:06:00]} exf5 {[%emt 0:02:19]} 24. gxf5 {[%emt 0:00:06]} Nxf5 {[%emt 0:00:29]} 25. Rxf5 {[%emt 0:00:22]} gxf5 {[%emt 0:00:03]} 26. Qh6 {[%emt 0:00:31]} Kf8 {[%emt 0:01:19]} 27. Qxg7+ {[%emt 0:02:11]} Ke7 {[%emt 0:00:08]} 28. Nc6+ {[%emt 0:00:35]} 1-0